bitfinex-derivatives/quotes_SOLF0:USTF0_20241211
["timestamp","ask_amount","ask_price","bid_price","bid_amount"]
[1733922262717,2.12,225.14,225.06,6.66481911]
[1733922262718,6.66481911,225.13,225.06,6.66481911]
[1733922262909,2.12,225.14,225.08,6.66481911]
[1733922264710,2.22,225.12,225.08,6.66481911]
[1733922265509,6.66481911,225.1,225.01,2.2211]
[1733922265710,6.66481911,225.06,225.0,10.91951911]
[1733922265928,6.66481911,225.08,225.0,10.91951911]
[1733922266508,2.2206,225.07,225.01,2.221]
[1733922266713,6.66481911,225.08,225.01,2.221]
[1733922266914,6.66481911,225.08,225.0,10.91951911]
[1733922267304,2.2207,225.05,225.0,13.14071911]
[1733922268314,6.66481911,225.06,225.0,13.14071911]
[1733922268315,2.2208,225.04,225.0,10.91951911]
[1733922269527,2.2208,225.04,225.02,6.66481911]
[1733922270421,2.2209,225.03,225.0,10.91951911]
[1733922272624,2.2208,225.04,225.0,13.14071911]
[1733922273025,8.78481911,225.04,224.95,5.43223138]
[1733922273224,8.78481911,225.04,224.96,6.66481911]
[1733922273420,2.12,225.04,225.0,6.66481911]
[1733922274624,2.2209,225.03,225.0,6.66481911]
[1733922276722,2.2208,225.04,225.0,8.88601911]
[1733922277625,2.2209,225.04,225.0,6.66481911]
[1733922279531,2.12,225.06,225.02,6.66481911]
[1733922279822,46.18,225.18,224.95,5.43223138]
[1733922279823,46.18,225.18,225.04,6.66481911]
[1733922280128,6.66481911,225.13,225.06,6.66481911]
[1733922280327,2.12,225.12,225.06,6.66481911]
[1733922280538,2.12,225.12,225.08,6.66481911]
[1733922280743,2.12,225.12,225.06,6.66481911]
[1733922281325,6.66481911,225.11,225.04,2.2207]
[1733922281625,6.66481911,225.11,225.04,8.88551911]
[1733922282730,2.2204,225.09,225.04,8.88551911]
[1733922283119,2.2204,225.09,225.06,6.66481911]
[1733922284939,2.12,225.13,225.08,6.66481911]
[1733922285138,2.12,225.13,225.11,6.66481911]
[1733922287940,2.2197,225.15,225.11,6.66481911]
[1733922288337,2.12,225.16,225.11,6.66481911]
[1733922288338,2.2198,225.14,225.11,6.66481911]
[1733922290936,2.12,225.16,225.11,6.66481911]
[1733922292147,2.2197,225.15,225.11,6.66481911]
[1733922292942,2.2197,225.15,225.12,4.27537536]
[1733922293136,2.2197,225.15,225.13,4.27537536]
[1733922293434,2.2197,225.15,225.14,4.27483406]
[1733922295836,2.2193,225.19,225.14,4.27483406]
[1733922296037,2.2193,225.19,225.15,10.93855994]
[1733922296236,8.01761911,225.25,225.17,6.66481911]
[1733922296537,2.12,225.24,225.19,6.66481911]
[1733922296836,6.66481911,225.26,225.2,4.2700415]
[1733922297034,2.12,225.25,225.21,6.66481911]
[1733922297638,2.2189,225.24,225.21,6.66481911]
[1733922298034,2.2189,225.24,225.22,4.26712911]
[1733922298238,2.2189,225.24,225.21,6.66481911]
[1733922298444,8.78481911,225.26,225.23,6.66481911]
[1733922298445,4.3386,225.26,225.23,6.66481911]
[1733922298644,2.12,225.27,225.23,6.66481911]
[1733922298844,2.12,225.28,225.23,6.66481911]
[1733922299041,2.12,225.28,225.24,4.26438991]
[1733922299237,2.12,225.28,225.23,6.66481911]
[1733922299440,4.3385,225.28,225.24,4.26255146]
[1733922299664,2.2185,225.28,225.25,6.66481911]
[1733922299944,2.12,225.29,225.25,6.66481911]
[1733922300344,2.2185,225.27,225.25,6.66481911]
[1733922300744,1.3364,225.35,225.25,6.66481911]
[1733922300943,1.3364,225.35,225.27,6.66481911]
[1733922300944,2.218,225.32,225.27,6.66481911]
[1733922301228,2.12,225.33,225.27,6.66481911]
[1733922301465,8.78481911,225.34,225.28,4.26400132]
[1733922301965,6.66481911,225.34,225.27,6.66481911]
[1733922301972,2.2179,225.33,225.29,6.66481911]
[1733922302143,46.56775348,225.4,225.29,6.66481911]
[1733922302457,6.66481911,225.38,225.31,6.66481911]
[1733922302863,2.2178,225.35,225.31,6.66481911]
[1733922303552,2.218,225.33,225.27,3.5378]
[1733922303862,2.218,225.33,225.29,6.66481911]
[1733922304776,2.12,225.34,225.29,6.66481911]
[1733922304973,46.56775348,225.4,225.33,6.66481911]
[1733922305354,2.2172,225.41,225.37,6.66481911]
[1733922305573,6.66481911,225.45,225.37,6.66481911]
[1733922305850,2.12,225.44,225.37,6.66481911]
[1733922306257,2.12,225.44,225.32,2.7089]
[1733922306258,2.12,225.46,225.41,6.66481911]
[1733922306449,2.12,225.46,225.43,6.66481911]
[1733922306810,6.66481911,225.49,225.43,6.66481911]
[1733922307049,8.78481911,225.49,225.43,6.66481911]
[1733922307635,2.12,225.49,225.43,6.66481911]
[1733922307897,2.2167,225.46,225.43,6.66481911]
[1733922309048,2.12,225.49,225.43,6.66481911]
[1733922309450,2.12,225.49,225.38,1.3813]
[1733922309451,2.12,225.49,225.45,6.66481911]
[1733922309751,2.12,225.49,225.38,1.3813]
[1733922309949,2.12,225.49,225.47,6.66481911]
[1733922310350,8.78481911,225.53,225.47,6.66481911]
[1733922310548,2.2163,225.5,225.47,6.66481911]
[1733922311226,1.3657,225.57,225.49,6.66481911]
[1733922311369,2.12,225.56,225.51,6.66481911]
[1733922311653,1.3945,225.66,225.53,6.66481911]
[1733922311654,6.66481911,225.59,225.53,6.66481911]
[1733922311848,8.78481911,225.59,225.53,6.66481911]
[1733922312252,2.12,225.59,225.53,6.66481911]
[1733922313045,6.66481911,225.58,225.53,6.66481911]
[1733922313247,12.50148195,225.59,225.48,1.3144]
[1733922313659,2.2162,225.51,225.48,1.3144]
[1733922315155,12.50148195,225.59,225.48,1.3144]
[1733922315360,2.216,225.53,225.49,10.38148195]
[1733922315959,2.2159,225.54,225.49,10.38148195]
[1733922316456,1.3946,225.61,225.49,10.38148195]
[1733922316658,2.12,225.6,225.49,12.59778195]
[1733922317666,2.12,225.63,225.52,12.59748195]
[1733922317863,5.37690173,225.68,225.55,10.38148195]
[1733922318068,2.12,225.67,225.55,10.38148195]
[1733922318265,2.12,225.67,225.55,12.59728195]
[1733922318866,2.12,225.67,225.55,10.38148195]
[1733922319060,2.2154,225.59,225.55,10.38148195]
[1733922319667,2.12,225.67,225.55,10.38148195]
[1733922319865,2.2153,225.6,225.55,10.38148195]
[1733922320265,2.12,225.67,225.55,10.38148195]
[1733922320465,2.2153,225.6,225.55,10.38148195]
[1733922321970,2.2155,225.58,225.55,10.38148195]
[1733922323067,2.2154,225.6,225.55,10.38148195]
[1733922323266,2.1,225.62,225.55,10.38148195]
[1733922324676,2.2155,225.58,225.55,10.38148195]
[1733922325375,2.2154,225.6,225.55,10.38148195]
[1733922325576,2.1,225.63,225.55,10.38148195]
[1733922326170,2.2153,225.6,225.55,10.38148195]
[1733922326975,2.2157,225.57,225.55,10.38148195]
[1733922327172,2.1,225.63,225.49,10.38148195]
[1733922327173,12.48148195,225.63,225.49,10.38148195]
[1733922327378,10.38148195,225.6,225.5,2.2172949]
[1733922327579,2.2162,225.51,225.5,2.2172949]
[1733922328676,2.1,225.54,225.5,2.2172949]
[1733922329719,2.216,225.53,225.5,2.2172949]
[1733922330382,2.2162,225.51,225.5,2.2172949]
[1733922332581,2.2162,225.51,225.46,10.38148195]
[1733922333172,2.1,225.54,225.46,10.38148195]
[1733922333388,2.1,225.54,225.44,6.61192566]
[1733922333692,2.1,225.54,225.44,1.3484]
[1733922333881,2.1,225.54,225.45,10.38148195]
[1733922336284,2.1,225.54,225.48,10.38148195]
[1733922336675,2.2161,225.52,225.48,10.38148195]
[1733922339212,2.2162,225.51,225.48,10.38148195]
[1733922339483,2.2162,225.51,225.49,4.21288992]
[1733922339685,2.2162,225.51,225.48,10.38148195]
[1733922339884,2.2162,225.51,225.49,4.21375609]
[1733922340184,2.2162,225.51,225.5,4.21880691]
[1733922341692,2.2165,225.48,225.46,6.10605797]
[1733922341986,2.1,225.54,225.47,8.82705209]
[1733922342248,2.1,225.54,225.48,4.22687781]
[1733922342249,2.2164,225.49,225.48,4.22687781]
[1733922342793,2.1,225.54,225.48,14.60835976]
[1733922343091,2.1,225.54,225.49,4.22687781]
[1733922343390,2.1,225.54,225.5,4.22687781]
[1733922343586,4.3159,225.54,225.51,4.22687781]
[1733922343779,4.3159,225.54,225.52,4.22687781]
[1733922343990,2.1,225.54,225.48,18.70393992]
[1733922344294,2.1,225.57,225.51,10.38148195]
[1733922344590,2.1,225.58,225.52,4.24188047]
[1733922344790,2.2156,225.57,225.53,4.24188047]
[1733922344983,2.1,225.58,225.54,4.24188047]
[1733922345190,2.1,225.58,225.55,4.24188047]
[1733922345392,2.2156,225.57,225.56,4.24188047]
[1733922348389,2.2155,225.58,225.56,4.24188047]
[1733922348595,2.2155,225.58,225.57,4.24188047]
[1733922349106,2.2155,225.58,225.53,2.2159]
[1733922349275,2.2155,225.58,225.54,4.25928881]
[1733922349390,2.2155,225.58,225.55,4.25928881]
[1733922349597,2.2155,225.58,225.56,4.25928881]
[1733922349797,2.2155,225.58,225.57,4.25928881]
[1733922352197,2.2154,225.59,225.57,4.25928881]
[1733922352393,2.1,225.6,225.49,1.3194]
[1733922352394,2.1,225.63,225.58,10.89949603]
[1733922352604,2.1,225.63,225.62,6.64020722]
[1733922352906,2.1,225.65,225.62,10.89949603]
[1733922353014,2.2149,225.64,225.63,4.25928881]
[1733922354393,1.4317,225.8,225.63,4.25928881]
[1733922354598,14.52032343,225.71,225.67,6.64020722]
[1733922354900,12.42032343,225.7,225.67,6.64020722]
[1733922355098,2.2146,225.68,225.67,6.64020722]
[1733922355300,2.2146,225.68,225.67,10.90903543]
[1733922355981,2.2146,225.68,225.67,6.64020722]
[1733922356099,2.2146,225.68,225.67,10.90774248]
[1733922356299,2.2146,225.68,225.67,4.26753526]
[1733922358802,2.2152,225.61,225.6,10.36646244]
[1733922359101,2.2152,225.61,225.6,14.62762284]
[1733922359302,2.2151,225.62,225.6,14.62762284]
[1733922359499,2.2151,225.62,225.61,4.2611604]
[1733922359997,2.1,225.69,225.61,4.2611604]
[1733922360305,2.1,225.69,225.6,10.36646244]
[1733922360508,2.2151,225.62,225.6,10.36646244]
[1733922362814,2.2152,225.61,225.6,10.36646244]
[1733922363109,2.1,225.69,225.55,5.37381415]
[1733922363110,2.1,225.64,225.55,5.37381415]
[1733922363312,2.1,225.63,225.55,5.37381415]
[1733922363522,2.2157,225.56,225.55,5.37381415]
[1733922364710,2.1,225.62,225.55,5.37381415]
[1733922365605,2.1,225.62,225.57,10.36646244]
[1733922366828,2.1,225.62,225.55,5.37381415]
[1733922367207,2.2155,225.58,225.55,5.37381415]
[1733922367705,2.1,225.62,225.55,5.37381415]
[1733922367900,2.1,225.62,225.51,10.36646244]
[1733922368610,0.67586253,225.61,225.51,10.36646244]
[1733922368904,2.1,225.62,225.51,10.36646244]
[1733922369021,2.2158,225.55,225.51,10.36646244]
[1733922369706,2.2158,225.55,225.5,0.2316]
[1733922369707,2.216,225.53,225.5,0.2316]
[1733922370408,2.1,225.57,225.5,0.2316]
[1733922370615,2.2162,225.51,225.5,0.2316]
[1733922371328,2.1,225.52,225.4,4.1118]
[1733922371329,2.2169,225.44,225.4,4.1118]
[1733922371527,2.1,225.47,225.4,4.1118]
[1733922371743,2.2168,225.45,225.4,4.1118]
[1733922372112,2.2168,225.45,225.41,5.19738225]
[1733922372314,2.2169,225.44,225.41,5.19738225]
[1733922372612,2.1,225.47,225.4,1.4163]
[1733922372918,2.217,225.43,225.4,1.4163]
[1733922373310,2.217,225.43,225.39,10.36646244]
[1733922374611,2.1,225.47,225.36,10.36646244]
[1733922374808,2.1,225.47,225.33,11.74256244]
[1733922375312,2.1,225.47,225.33,13.96046244]
[1733922376615,2.2172,225.4,225.33,13.96046244]
[1733922378218,2.1,225.41,225.36,5.19473821]
[1733922378427,2.1,225.41,225.33,1.3761]
[1733922379422,2.2174,225.38,225.33,11.74256244]
[1733922379930,2.1,225.41,225.33,1.3761]
[1733922380215,2.1,225.4,225.31,5.33687749]
[1733922380616,2.2178,225.35,225.31,5.33687749]
[1733922380913,2.1,225.4,225.31,5.33687749]
[1733922381109,2.2178,225.34,225.31,5.33687749]
[1733922382114,2.1,225.35,225.27,10.36646244]
[1733922382314,2.1,225.34,225.27,10.36646244]
[1733922382719,2.2182,225.31,225.27,10.36646244]
[1733922383314,2.2182,225.31,225.28,5.40249162]
[1733922385113,2.1,225.34,225.3,10.36646244]
[1733922385311,2.1,225.38,225.3,10.36646244]
[1733922385814,2.2176,225.36,225.3,12.58466244]
[1733922386119,2.1,225.38,225.3,12.58466244]
[1733922386809,1.4333,225.44,225.3,10.36646244]
[1733922387016,1.4333,225.44,225.33,10.36646244]
[1733922387219,5.42152223,225.5,225.36,10.36646244]
[1733922387430,5.42152223,225.5,225.33,2.1]
[1733922387431,2.2169,225.44,225.39,10.36646244]
[1733922387622,10.36646244,225.51,225.4,2.2172]
[1733922387999,0.17548,225.52,225.42,10.36646244]
[1733922388188,2.1,225.51,225.45,10.36646244]
[1733922388389,2.1,225.51,225.46,2.2166]
[1733922388583,4.3162,225.51,225.45,10.36646244]
[1733922388815,2.1,225.51,225.39,10.36646244]
[1733922389018,2.2167,225.46,225.39,10.36646244]
[1733922389219,2.1,225.51,225.42,10.36646244]
[1733922389821,2.1,225.51,225.45,10.36646244]
[1733922390118,2.27548,225.52,225.45,10.36646244]
[1733922390713,2.2164,225.49,225.45,10.36646244]
[1733922391122,2.2166,225.47,225.42,10.36646244]
[1733922392818,2.2166,225.47,225.42,12.58346244]
[1733922393415,2.2165,225.48,225.44,5.32043857]
[1733922394225,0.17548,225.52,225.39,10.36646244]
[1733922394432,2.2171,225.42,225.37,2.2175]
[1733922395018,2.2171,225.42,225.36,2.2176]
[1733922395617,2.2171,225.42,225.37,2.2175]
[1733922396154,2.2169,225.44,225.39,7.60137268]
[1733922396317,2.1,225.45,225.39,5.38407268]
[1733922396730,2.2169,225.43,225.39,5.38407268]
[1733922397632,4.3168,225.45,225.39,5.38407268]
[1733922398056,2.1,225.45,225.39,5.38407268]
[1733922398435,2.1,225.45,225.35,13.24596244]
[1733922398928,2.1,225.45,225.37,5.32895144]
[1733922399133,2.2173,225.4,225.37,5.32895144]
[1733922399836,2.217,225.43,225.37,5.32895144]
[1733922400129,2.1,225.45,225.37,5.32895144]
[1733922400928,1.4105,225.5,225.38,10.36646244]
[1733922401174,2.2169,225.43,225.38,10.36646244]
[1733922401343,2.2169,225.43,225.38,12.58386244]
[1733922403231,2.2171,225.42,225.37,5.32895144]
[1733922403434,2.1,225.45,225.37,5.32895144]
[1733922405433,2.1,225.45,225.38,12.58386244]
[1733922405628,2.1,225.45,225.38,10.36646244]
[1733922405629,2.2169,225.44,225.38,10.36646244]
[1733922405828,2.2169,225.44,225.39,2.2173]
[1733922406431,2.2167,225.46,225.41,12.58356244]
[1733922406733,2.1,225.48,225.41,10.36646244]
[1733922406935,2.1,225.49,225.41,10.36646244]
[1733922407146,2.2167,225.46,225.41,12.58356244]
[1733922407341,10.36646244,225.54,225.41,10.36646244]
[1733922407562,2.1,225.53,225.41,10.36646244]
[1733922407791,10.36646244,225.54,225.41,10.36646244]
[1733922407957,10.36646244,225.57,225.41,10.36646244]
[1733922408183,2.812,225.58,225.44,10.36646244]
[1733922408359,2.1,225.57,225.48,10.36646244]
[1733922408536,1.3749,225.58,225.48,12.58286244]
[1733922408734,2.1,225.57,225.48,12.58286244]
[1733922409636,2.216,225.53,225.48,12.58286244]
[1733922411338,2.2159,225.54,225.49,2.2163]
[1733922411935,2.216,225.53,225.49,2.2163]
[1733922412338,2.1,225.55,225.5,2.2162]
[1733922413738,56.44646244,225.63,225.51,2.2161]
[1733922413934,56.44646244,225.63,225.51,10.36646244]
[1733922413935,2.1,225.62,225.51,10.36646244]
[1733922414144,2.2153,225.6,225.51,10.36646244]
[1733922414393,10.36646244,225.66,225.55,2.2157]
[1733922414662,2.1,225.65,225.54,10.36646244]
[1733922414835,2.2152,225.61,225.56,2.2156]
[1733922415837,2.1,225.63,225.57,10.36646244]
[1733922416031,10.36646244,225.69,225.57,10.36646244]
[1733922416308,2.2156,225.57,225.51,2.2161]
[1733922416706,2.1,225.6,225.5,15.80019653]
[1733922417236,2.2156,225.57,225.52,2.2161]
[1733922418840,2.2157,225.56,225.5,15.80019653]
[1733922420443,2.2157,225.56,225.51,2.2161]
[1733922420636,2.1,225.6,225.5,15.80019653]
[1733922420833,12.46646244,225.6,225.5,5.43373409]
[1733922421441,2.2156,225.57,225.5,5.43373409]
[1733922421746,12.46646244,225.6,225.5,5.43373409]
[1733922422151,10.36646244,225.6,225.5,5.43373409]
[1733922422348,2.1,225.59,225.5,5.43373409]
[1733922422542,2.2163,225.5,225.45,10.36646244]
[1733922422869,10.36646244,225.57,225.46,5.19394197]
[1733922422870,2.1,225.53,225.46,5.19394197]
[1733922424545,2.2164,225.49,225.46,5.19394197]
[1733922425458,2.1,225.48,225.4,2.8819]
[1733922425646,2.1,225.47,225.4,2.8819]
[1733922425979,2.2168,225.45,225.4,2.8819]
[1733922426148,2.1,225.47,225.41,15.59347461]
[1733922427647,11.78516244,225.58,225.44,10.36646244]
[1733922427849,2.1,225.57,225.47,10.36646244]
[1733922428144,2.1,225.58,225.51,2.2161]
[1733922428447,2.1,225.58,225.5,10.36646244]
[1733922428644,2.2156,225.57,225.52,2.216]
[1733922428957,2.1,225.58,225.5,10.36646244]
[1733922429355,2.1,225.58,225.48,2.1]
[1733922429545,2.1,225.58,225.47,11.67616244]
[1733922429744,2.1,225.58,225.48,2.2164]
[1733922429945,2.1,225.58,225.47,11.67616244]
[1733922429946,2.1,225.58,225.5,10.36646244]
[1733922430869,2.1,225.58,225.53,10.36646244]
[1733922431446,2.1,225.58,225.55,2.2157]
[1733922433041,2.1,225.62,225.53,10.36646244]
[1733922433345,2.1,225.62,225.56,10.36646244]
[1733922433846,2.1,225.62,225.54,2.1]
[1733922434045,2.1,225.62,225.54,12.46646244]
[1733922434752,2.1,225.62,225.57,2.2155]
[1733922436050,2.1,225.62,225.59,2.2154]
[1733922436545,1.3954,225.68,225.61,2.2152]
[1733922437249,2.1,225.67,225.61,2.2152]
[1733922437547,10.36646244,225.73,225.63,2.215]
[1733922437755,2.1,225.72,225.6,10.36646244]
[1733922438452,2.1,225.72,225.6,11.72316244]
[1733922439047,2.2144,225.7,225.63,2.215]
[1733922439247,2.1,225.72,225.63,10.36646244]
[1733922440152,4.3141,225.72,225.63,10.36646244]
[1733922440652,4.3141,225.72,225.66,2.2146]
[1733922440953,4.3141,225.72,225.63,10.36646244]
[1733922441262,2.1,225.72,225.68,2.2145]
[1733922441856,4.3141,225.72,225.68,2.2145]
[1733922442451,2.2141,225.72,225.68,2.2145]
[1733922443550,2.2141,225.72,225.67,2.2146]
[1733922443774,2.1,225.74,225.63,10.36646244]
[1733922444159,2.2144,225.69,225.64,2.2148]
[1733922445156,2.1,225.74,225.64,2.2148]
[1733922445359,2.2145,225.68,225.64,2.2148]
[1733922446954,2.2144,225.7,225.64,2.2148]
[1733922447457,2.1,225.69,225.61,1.3656]
[1733922447650,2.1,225.69,225.6,1.3567]
[1733922447855,2.1,225.69,225.59,5.25680758]
[1733922448110,2.2152,225.62,225.57,2.2155]
[1733922448449,2.1,225.63,225.57,10.36646244]
[1733922448852,2.1,225.63,225.58,2.2154]
[1733922449158,2.1,225.63,225.57,10.36646244]
[1733922449962,2.1,225.63,225.58,5.27618617]
[1733922451801,2.2152,225.61,225.58,5.27618617]
[1733922451990,2.1,225.63,225.58,5.27618617]
[1733922452355,2.2151,225.62,225.58,5.27618617]
[1733922453260,2.1,225.63,225.54,10.36646244]
[1733922453464,2.1,225.63,225.53,2.2159]
[1733922453762,2.1,225.63,225.55,5.23062211]
[1733922453763,2.2152,225.61,225.55,5.23062211]
[1733922453958,2.1,225.63,225.55,5.23062211]
[1733922455068,2.1,225.7,225.6,10.36646244]
[1733922455479,2.1,225.69,225.6,10.36646244]
[1733922455991,4.3144,225.69,225.63,2.2149]
[1733922457071,2.2145,225.68,225.63,2.2149]
[1733922457363,2.1,225.69,225.61,2.2151]
[1733922457565,2.2146,225.67,225.61,2.2151]
[1733922457957,2.2146,225.67,225.62,2.215]
[1733922459656,2.2145,225.68,225.63,2.215]
[1733922460767,2.1,225.69,225.6,10.36646244]
[1733922460970,2.1,225.69,225.61,2.2151]
[1733922461767,2.2148,225.66,225.61,2.2151]
[1733922463164,2.2148,225.65,225.61,2.2151]
[1733922464676,2.1,225.69,225.6,10.36646244]
[1733922464964,2.2147,225.66,225.62,2.2151]
[1733922466000,2.1,225.69,225.6,12.58166244]
[1733922466170,2.1,225.69,225.6,10.36646244]
[1733922466568,2.2149,225.64,225.6,10.36646244]
[1733922467176,2.1,225.69,225.6,10.36646244]
[1733922467374,2.1,225.68,225.6,10.36646244]
[1733922467670,2.2142,225.72,225.67,2.2146]
[1733922467879,4.3142,225.72,225.63,10.36646244]
[1733922468076,15.0,225.59,225.48,7.69259108]
[1733922468377,20.73292488,225.5,225.21,2.758]
[1733922468615,10.36646244,225.38,225.21,2.758]
[1733922468878,12.68646244,225.38,225.27,5.25514636]
[1733922469231,2.2181,225.32,225.27,5.25514636]
[1733922469241,2.2181,225.32,225.22,2.2200515]
[1733922469506,2.2179,225.34,225.25,5.35672848]
[1733922469678,2.32,225.38,225.26,2.32]
[1733922469679,10.36646244,225.37,225.26,2.32]
[1733922469973,10.36646244,225.34,225.27,2.21955875]
[1733922470378,2.2182,225.31,225.27,2.21955875]
[1733922471177,2.2183,225.3,225.27,2.21955875]
[1733922471372,16.64971593,225.34,225.27,2.21955875]
[1733922471566,16.64971593,225.3,225.27,2.21955875]
[1733922472071,2.2184,225.28,225.27,2.21955875]
[1733922472292,16.64971593,225.3,225.06,16.64971593]
[1733922472477,16.64971593,225.26,225.14,2.32]
[1733922472879,16.64971593,225.26,225.15,2.22074172]
[1733922473976,2.2193,225.2,225.15,2.22074172]
[1733922475506,16.64971593,225.26,225.15,2.22074172]
[1733922476581,16.64971593,225.22,225.15,2.22074172]
[1733922476777,22.06936913,225.22,225.15,2.22074172]
[1733922476971,2.2196,225.17,225.15,2.22074172]
[1733922477795,2.2194,225.19,225.15,2.22074172]
[1733922477980,5.4196532,225.22,225.15,2.22074172]
[1733922478182,2.32,225.23,225.15,2.22074172]
[1733922478573,16.64971593,225.25,225.15,4.54074172]
[1733922479171,2.2193,225.2,225.15,2.32]
[1733922480779,2.2193,225.19,225.15,2.32]
[1733922481203,16.64971593,225.25,225.15,2.32]
[1733922481204,5.27441851,225.23,225.15,2.32]
[1733922481388,2.2196,225.17,225.15,2.32]
[1733922481582,5.27441851,225.23,225.15,2.32]
[1733922481783,2.2193,225.2,225.15,2.32]
[1733922481997,5.27441851,225.23,225.15,2.32]
[1733922482887,5.27441851,225.23,225.11,1.3182]
[1733922483089,16.64971593,225.21,225.11,3.6382]
[1733922483385,2.2195,225.17,225.11,3.6382]
[1733922483573,16.64971593,225.21,225.11,3.6382]
[1733922484173,5.27441851,225.23,225.11,3.6382]
[1733922484792,2.2193,225.19,225.11,5.8582]
[1733922486179,2.2194,225.18,225.11,5.8582]
[1733922486578,5.27441851,225.23,225.11,1.3182]
[1733922486884,2.2198,225.15,225.12,2.32]
[1733922487293,16.64971593,225.28,225.12,2.32]
[1733922487484,5.24486908,225.26,225.12,2.32]
[1733922488390,2.2192,225.2,225.12,4.5399]
[1733922488595,2.2192,225.2,225.12,2.32]
[1733922489788,2.2192,225.2,225.13,2.2199]
[1733922489983,16.64971593,225.28,225.12,2.32]
[1733922490188,2.219,225.23,225.14,16.64971593]
[1733922490783,2.219,225.23,225.17,2.2195]
[1733922491073,2.219,225.23,225.18,2.32]
[1733922491891,2.219,225.22,225.18,2.32]
[1733922493686,2.2189,225.24,225.18,2.32]
[1733922494086,10.40846726,225.29,225.18,2.32]
[1733922494535,2.2187,225.25,225.18,2.32]
[1733922494793,10.40846726,225.32,225.19,10.40846726]
[1733922495186,10.40846726,225.32,225.2,1.4188]
[1733922495684,10.40846726,225.32,225.21,1.3955]
[1733922495897,5.23442344,225.3,225.21,1.3955]
[1733922496083,2.2185,225.27,225.22,2.219]
[1733922496289,2.2185,225.27,225.23,2.32]
[1733922498292,2.2183,225.3,225.23,2.32]
[1733922498499,10.40846726,225.32,225.24,2.2188]
[1733922498786,10.40846726,225.32,225.23,2.32]
[1733922499190,10.40846726,225.32,225.23,4.5389]
[1733922499500,2.2183,225.3,225.23,4.5389]
[1733922499697,15.77109618,225.32,225.23,4.5389]
[1733922500091,15.77109618,225.32,225.21,1.3955]
[1733922500286,10.40846726,225.29,225.22,2.36]
[1733922500591,10.40846726,225.29,225.06,15.6661695]
[1733922500592,10.40846726,225.26,225.11,72.18782447]
[1733922500827,10.40846726,225.26,225.12,2.36]
[1733922501057,10.40846726,225.26,225.13,2.36]
[1733922501058,10.40846726,225.23,225.13,2.36]
[1733922501995,2.2196,225.16,225.13,2.36]
[1733922502288,10.40846726,225.23,225.11,10.40846726]
[1733922502491,10.40846726,225.23,225.13,2.36]
[1733922502492,2.2195,225.17,225.13,2.36]
[1733922503190,10.40846726,225.21,225.1,2.36]
[1733922503814,2.2197,225.15,225.09,2.2202]
[1733922504176,2.2197,225.15,225.09,4.5802]
[1733922504496,2.2197,225.15,225.1,2.2202]
[1733922504727,2.2196,225.17,225.09,12.76846726]
[1733922504940,194.23159569,225.21,225.09,12.76846726]
[1733922505099,10.40846726,225.21,225.09,12.76846726]
[1733922505696,2.2194,225.18,225.09,12.76846726]
[1733922506600,10.40846726,225.21,225.12,2.2199]
[1733922506788,215.02876654,225.23,225.09,12.76846726]
[1733922506990,306.45315654,225.34,225.18,10.40846726]
[1733922506991,183.82312843,225.27,225.18,10.40846726]
[1733922507296,245.09750458,225.31,225.22,2.219]
[1733922507297,428.92063301,225.31,225.22,2.219]
[1733922507688,428.92063301,225.31,225.19,6.5452]
[1733922507689,245.09750458,225.31,225.19,6.5452]
[1733922507999,2.2183,225.3,225.25,2.2187]
[1733922508197,38.91848256,225.32,225.24,2.36]
[1733922508399,7.72262892,225.32,225.24,2.36]
[1733922509196,2.2185,225.27,225.24,2.36]
[1733922509498,2.2185,225.27,225.22,2.36]
[1733922509993,2.2185,225.27,225.22,4.579]
[1733922510615,2.2186,225.26,225.22,2.36]
[1733922510998,7.72262892,225.32,225.22,2.36]